fUSD/lending_fUSD_20240318
["ID","MTS","AMOUNT","RATE_DAILY","PERIOD"]
[319492306,1710800081350,-304.46,0.000319,2]
[319492307,1710800081361,-304.46,0.000319,2]
[319492308,1710800081369,-304.46,0.000319,2]
[319492309,1710800081378,-304.46,0.000319,2]
[319492310,1710800081388,-304.46,0.000319,2]
[319492311,1710800081397,-304.46,0.000319,2]
[319492312,1710800081407,-304.46,0.000319,2]
[319492313,1710800081416,-304.46,0.000319,2]
[319492314,1710800081425,-304.46,0.000319,2]
[319492315,1710800081434,-304.46,0.000319,2]
[319492316,1710800081444,-304.46,0.000319,2]
[319492317,1710800081455,-2854.97924842,0.00031905,2]
[319492318,1710800081465,-9086.84328114,0.00031905,2]
[319492319,1710800081474,-2930.06321131,0.00031905,2]
[319492320,1710800081484,-2435.50792091,0.00031906,2]
[319492321,1710800081493,-2904.40098282,0.00031906,2]
[319492322,1710800081502,-9474.38883793,0.00031907,2]
[319492323,1710800081512,-2830.85550904,0.00031908,2]
[319492324,1710800081521,-2031.27614871,0.00031911,2]
[319492325,1710800081531,-2756.4966846,0.00031911,2]
[319492326,1710800081541,-2891.56687764,0.00031911,2]
[319492327,1710800081550,-2817.94619599,0.00031912,2]
[319492328,1710800081559,-461.01773832,0.00031913,2]
[319492329,1710800081569,-1900.01274495,0.00031913,2]
[319492330,1710800081578,-451.25851848,0.00031913,2]
[319492331,1710800081587,-150.0,0.00031916,7]
[319492332,1710800081596,-2706.21552037,0.00031916,2]
[319492333,1710800081605,-9012.82575547,0.00031917,2]
[319492334,1710800081822,-1492.40240047,0.00031917,2]
[319492335,1710800081832,-2896.52444366,0.00031918,2]
[319492336,1710800081841,-2971.69062564,0.00031918,2]
[319492337,1710800081850,-9102.75815904,0.00031919,2]
[319492338,1710800081859,-2871.36971926,0.0003192,2]
[319492339,1710800081868,-8627.26513297,0.0003192,2]
[319492340,1710800081877,-2577.9260313,0.0003192,2]
[319492341,1710800081886,-2961.64750169,0.00031921,2]
[319492342,1710800081895,-2849.66260192,0.00031921,2]
[319492343,1710800081904,-2884.13312797,0.00031922,2]
[319492344,1710800081913,-9837.56784089,0.00031922,2]
[319492345,1710800081922,-2852.2020982,0.00031923,2]
[319492346,1710800081931,-2860.14905692,0.00031924,2]
[319492347,1710800081940,-2838.37659091,0.00031925,2]
[319492348,1710800081950,-1649.05036954,0.00031927,2]
[319492349,1710800081959,-9071.87041536,0.00031929,2]
[319492350,1710800081968,-9142.99694779,0.00031929,2]
[319492351,1710800081977,-150.09840628,0.00031929,2]
[319492352,1710800081986,-2720.37148285,0.0003193,2]
[319492353,1710800081994,-2813.21292252,0.00031932,2]
[319492354,1710800082003,-2840.21443417,0.00031932,2]
[319492355,1710800082013,-2876.83559849,0.00031934,2]
[319492356,1710800082022,-150.0,0.00031935,7]
[319492357,1710800082032,-2867.5030991,0.00031936,2]
[319492358,1710800082042,-443.36141994,0.00031936,2]
[319492359,1710800082051,-2912.14760585,0.00031936,2]
[319492360,1710800082062,-2829.41704777,0.00031936,2]
[319492361,1710800082074,-2352.00647394,0.00031937,2]
[319492362,1710800082086,-464.00457051,0.00031937,2]
[319492363,1710800082096,-2858.73701254,0.00031937,2]
[319492364,1710800082106,-920.92208442,0.00031937,2]
[319492365,1710800082116,-2916.5583233,0.00031937,2]
[319492366,1710800082125,-2846.80961271,0.00031939,2]
[319492367,1710800082135,-9744.24715328,0.0003194,2]
[319492368,1710800082144,-2859.70037632,0.00031941,2]
[319492369,1710800082154,-2687.94049741,0.00031941,2]
[319492370,1710800082163,-2864.48134561,0.00031942,2]
[319492371,1710800082172,-2061.73891202,0.00031942,2]
[319492372,1710800082181,-170.62833781,0.00031947,7]
[319492373,1710800082190,-2534.0,0.00031948,31]
[319492374,1710800082199,-2946.89257818,0.00031948,2]
[319492375,1710800082208,-9080.80146633,0.00031949,2]
[319492376,1710800082217,-1529.41261976,0.00031949,2]
[319492377,1710800082226,-463.19577024,0.0003195,2]
[319492378,1710800082235,-468.14135769,0.0003195,2]
[319492379,1710800082245,-2857.96517134,0.00031954,2]
[319492380,1710800082254,-9021.10959719,0.00031956,2]
[319492381,1710800082263,-2989.07310822,0.00031956,2]
[319492382,1710800082274,-2307.28075473,0.00031957,2]
[319492383,1710800082284,-2334.21588971,0.00031957,2]
[319492384,1710800082295,-2829.39458004,0.00031957,2]
[319492385,1710800082304,-2854.32121871,0.00031959,2]
[319492386,1710800082313,-150.0,0.0003196,7]
[319492387,1710800082322,-2602.21849232,0.00031962,2]
[319492388,1710800082331,-2864.26138747,0.00031966,2]
[319492389,1710800082340,-2842.92329618,0.00031967,2]
[319492390,1710800082349,-457.80478676,0.00031967,2]
[319492391,1710800082358,-2860.64124712,0.00031967,2]
[319492392,1710800082367,-2788.70124647,0.00031972,2]
[319492393,1710800082377,-2901.35075071,0.00031972,2]
[319492394,1710800082386,-9860.96288332,0.00031972,2]
[319492395,1710800082395,-9784.22212252,0.00031972,2]
[319492396,1710800082404,-2877.02402643,0.00031973,2]
[319492397,1710800082414,-474.75043285,0.00031977,2]
[319492398,1710800082424,-2865.32443407,0.0003198,2]
[319492399,1710800082433,-1786.52806089,0.00031981,2]
[319492400,1710800082442,-2786.6576334,0.00031983,2]
[319492401,1710800082452,-2409.0100748,0.00031983,2]
[319492402,1710800082461,-9138.21701012,0.00031986,2]
[319492403,1710800082470,-2857.89471958,0.00031986,2]
[319492404,1710800082479,-2881.54048125,0.00031987,2]
[319492405,1710800082488,-2825.25442289,0.00031988,2]
[319492406,1710800082498,-2868.01332156,0.00031989,2]
[319492407,1710800082507,-2864.32570788,0.0003199,2]
[319492408,1710800082517,-8878.99746709,0.00031992,2]
[319492409,1710800082526,-9161.72884061,0.00031993,2]
[319492410,1710800082535,-2854.93178303,0.00031993,2]
[319492411,1710800082546,-2321.75072808,0.00031994,2]
[319492412,1710800082555,-2072.08262871,0.00031995,2]
[319492413,1710800082567,-2897.14643289,0.00031996,2]
[319492414,1710800082576,-701.93,0.00031996,2]
[319492415,1710800082586,-9047.05889453,0.00031997,2]
[319492416,1710800082595,-127429.60002479,0.00031998,2]
[319492417,1710800082604,-2827.32752569,0.00031999,2]
[319492418,1710800082614,-2857.30874956,0.00031999,2]
[319492419,1710800082624,-200000.0,0.00032,22]
[319492420,1710800082640,-200000.0,0.00032,32]
[319492421,1710800082649,-500.0,0.00032,4]
[319492422,1710800082658,-548.35,0.00032,4]
[319492423,1710800082667,-9011.62148948,0.00032,2]
[319492424,1710800082676,-2899.52031469,0.00032,30]
[319492425,1710800082685,-2479.11393161,0.00032,6]
[319492426,1710800082694,-3000.0,0.00032,5]
[319492427,1710800082703,-10339.12658841,0.00032,7]
[319492428,1710800082713,-1978.71833163,0.00032,2]
[319492429,1710800082723,-25496.0,0.00032,10]
[319492430,1710800082733,-25000.0,0.00032,10]
[319492431,1710800082744,-2559.50640696,0.00032,10]
[319492432,1710800082753,-2100.0,0.00032,2]
[319492433,1710800082762,-600.0,0.00032,33]
[319492434,1710800082771,-813.95869872,0.00032,2]
[319492435,1710800082780,-20000.0,0.00032,20]
[319492436,1710800082790,-503.0,0.00032,31]
[319492437,1710800082798,-5464.4528585,0.00032,120]
[319492438,1710800082807,-232025.57739517,0.00032,2]
[319492439,1710800082816,-500.0,0.00032,31]
[319492440,1710800082825,-500.0,0.00032,31]
[319492441,1710800082834,-500.0,0.00032,31]
[319492442,1710800082843,-725.0,0.00032,31]
[319492443,1710800082852,-451.48190499,0.00032,30]
[319492444,1710800082861,-1000.0,0.00032,120]
[319492445,1710800082870,-285.55,0.00032,5]
[319492446,1710800082879,-220000.0,0.00032,2]
[319492447,1710800082888,-16429.2276658,0.00032,120]
[319492448,1710800082897,-222.43709153,0.00032,4]
[319492449,1710800082906,-166.563263,0.00032,7]
[319492450,1710800082915,-1116.0,0.00032,20]
[319492451,1710800082924,-1010.44,0.00032,2]
[319492452,1710800082934,-302.44,0.00032,2]
[319492453,1710800082942,-150.0,0.00032039,7]
[319492454,1710800082952,-500.0,0.00032054,4]
[319492455,1710800082961,-2171.7,0.00032054,4]
[319492456,1710800082971,-365.78163085,0.00032054,120]
[319492457,1710800082980,-2297.375578,0.00032069,2]
[319492458,1710800082989,-984.463779,0.00032069,2]
[319492459,1710800082997,-4521.32537,0.00032069,2]
[319492460,1710800083006,-2518.53212634,0.000321,2]
[319492461,1710800083015,-451.48190499,0.00032137,30]
[319492462,1710800083024,-150.95,0.00032146,2]
[319492463,1710800083033,-5829.76,0.00032148,15]
[319492464,1710800083043,-5829.76,0.00032148,15]
[319492465,1710800083052,-150.0,0.00032162,7]
[319492466,1710800083063,-956.0,0.00032179,3]
[319492467,1710800083073,-4999.19983666,0.000322,35]
[319492468,1710800083082,-6306.46707544,0.000322,35]
[319492469,1710800083091,-357.97505957,0.000322,35]
[319492470,1710800083100,-2932.53218435,0.000322,35]
[319492471,1710800083110,-1414.52628301,0.000322,35]
[319492472,1710800083119,-2079.23656477,0.000322,35]
[319492473,1710800083128,-500.0,0.000322,120]
[319492474,1710800083139,-1010.44,0.000322,2]
[319492475,1710800083149,-150.0,0.00032242,7]
[319492476,1710800083158,-451.48190499,0.00032247,30]
[319492477,1710800083167,-150.0,0.00032286,7]
[319492478,1710800083176,-150.0,0.00032286,7]
[319492479,1710800083186,-300.0,0.000323,2]
[319492480,1710800083195,-500.0,0.00032328,4]
[319492481,1710800083205,-2171.7,0.00032328,4]
[319492482,1710800083214,-1114.75,0.00032329,2]
[319492483,1710800083223,-150.0,0.00032329,2]
[319492484,1710800083232,-150.0,0.0003234,7]
[319492485,1710800083241,-451.48190499,0.00032356,30]
[319492486,1710800083250,-150.0,0.00032409,7]
[319492487,1710800083258,-5829.76,0.00032421,15]
[319492488,1710800083267,-5829.76,0.00032421,15]
[319492489,1710800083277,-12643.43047301,0.00032428,14]
[319492490,1710800083285,-152.0,0.00032454,9]
[319492491,1710800083296,-166.788177,0.00032456,2]
[319492492,1710800083305,-198.371011,0.00032456,2]
[319492493,1710800083313,-2297.375578,0.00032456,2]
[319492494,1710800083322,-168.103047,0.00032456,2]
[319492495,1710800083331,-984.463779,0.00032456,2]
[319492496,1710800083340,-4521.32537,0.00032456,2]
[319492497,1710800083349,-451.48190499,0.00032493,30]
[319492498,1710800083359,-6228.90801072,0.000325,7]
[319492499,1710800083369,-304.46,0.000325,2]
[319492500,1710800083378,-304.46,0.000325,2]
[319492501,1710800083387,-304.46,0.000325,2]
[319492502,1710800083396,-304.46,0.000325,2]
[319492503,1710800083406,-304.46,0.000325,2]
[319492504,1710800083415,-304.46,0.000325,2]
[319492505,1710800083424,-304.46,0.000325,2]
[319492506,1710800083434,-304.46,0.000325,2]
[319492507,1710800083443,-304.46,0.000325,2]
[319492508,1710800083453,-304.46,0.000325,2]
[319492509,1710800083463,-304.46,0.000325,2]
[319492510,1710800083472,-304.46,0.000325,2]
[319492511,1710800083481,-304.46,0.000325,2]
[319492512,1710800083490,-304.46,0.000325,2]
[319492513,1710800083499,-304.46,0.000325,2]
[319492514,1710800083508,-304.46,0.000325,2]
[319492515,1710800083517,-1116.0,0.000325,21]
[319492516,1710800083526,-15210.09,0.000325,2]
[319492517,1710800083535,-15210.09,0.000325,2]
[319492518,1710800083546,-15210.09,0.000325,2]
[319492519,1710800083555,-15210.09,0.000325,2]
[319492520,1710800083563,-15210.09,0.000325,2]
[319492521,1710800083572,-15210.09,0.000325,2]
[319492522,1710800083582,-15210.09,0.000325,2]
[319492523,1710800083591,-15210.09,0.000325,2]
[319492524,1710800083601,-15210.09,0.000325,2]
[319492525,1710800083610,-15210.09,0.000325,2]
[319492526,1710800083619,-15210.09,0.000325,2]
[319492527,1710800083632,-15210.09,0.000325,2]
[319492528,1710800083641,-15210.09,0.000325,2]
[319492529,1710800083650,-15210.09,0.000325,2]
[319492530,1710800083659,-15210.09,0.000325,2]
[319492531,1710800083669,-15210.09,0.000325,2]
[319492532,1710800083678,-15210.09,0.000325,2]
[319492533,1710800083687,-15210.09,0.000325,2]
[319492534,1710800083696,-15210.09,0.000325,2]
[319492535,1710800083705,-15210.09,0.000325,2]
[319492536,1710800083715,-150.0,0.00032532,7]
[319492537,1710800083723,-150.0,0.00032548,7]
[319492538,1710800083732,-379.99,0.0003259,2]
[319492539,1710800083741,-380.0,0.0003259,2]
[319492540,1710800083750,-380.0,0.0003259,2]
[319492541,1710800083759,-380.0,0.0003259,2]
[319492542,1710800083768,-380.0,0.0003259,2]
[319492543,1710800083777,-380.0,0.0003259,2]
[319492544,1710800083786,-380.0,0.0003259,2]
[319492545,1710800083797,-380.0,0.0003259,2]
[319492546,1710800083806,-331.15,0.0003259,2]
[319492547,1710800083815,-1725.43139933,0.000326,2]
[319492548,1710800083824,-500.0,0.00032602,4]
[319492549,1710800083833,-2171.7,0.00032602,4]
[319492550,1710800083842,-451.48190499,0.00032603,30]
[319492551,1710800083851,-150.0,0.00032656,7]
[319492552,1710800083860,-1000.0,0.00032674,10]
[319492553,1710800083870,-5829.76,0.00032695,15]
[319492554,1710800083879,-5829.76,0.00032695,15]
[319492555,1710800083888,-847520.10359105,0.000327,2]
[319492556,1710800083897,-20000.0,0.000327,5]
[319492557,1710800083906,-15210.09,0.000327,2]
[319492558,1710800083915,-15210.09,0.000327,2]
[319492559,1710800083924,-15210.09,0.000327,2]
[319492560,1710800083933,-15210.09,0.000327,2]
[319492561,1710800083942,-15210.09,0.000327,2]
[319492562,1710800083951,-15210.09,0.000327,2]
[319492563,1710800083960,-15210.09,0.000327,2]
[319492564,1710800083969,-15210.09,0.000327,2]
[319492565,1710800083978,-15210.09,0.000327,2]
[319492566,1710800083987,-15210.09,0.000327,2]
[319492567,1710800083996,-15210.09,0.000327,2]
[319492568,1710800084005,-15210.09,0.000327,2]
[319492569,1710800084014,-15210.09,0.000327,2]
[319492570,1710800084022,-15210.09,0.000327,2]
[319492571,1710800084032,-15210.09,0.000327,2]
[319492572,1710800084040,-15210.09,0.000327,2]
[319492573,1710800084049,-15210.09,0.000327,2]
[319492574,1710800084058,-15210.09,0.000327,2]
[319492575,1710800084067,-15210.09,0.000327,2]
[319492576,1710800084077,-15210.09,0.000327,2]
[319492577,1710800084086,-451.48190499,0.00032712,30]
[319492578,1710800084095,-150.0,0.0003272,7]
[319492579,1710800084103,-150.0,0.00032779,7]
[319492580,1710800084112,-3514.64918889,0.000328,2]
[319492581,1710800084121,-10000.0,0.000328,7]
[319492582,1710800084131,-300.0,0.000328,2]
[319492583,1710800084139,-302.44,0.00032805,2]
[319492584,1710800084148,-451.48190499,0.00032849,30]
[319492585,1710800084158,-150.0,0.00032855,7]
[319492586,1710800084166,-500.0,0.00032876,4]
[319492587,1710800084175,-2171.7,0.00032876,4]
[319492588,1710800084184,-385.0,0.00032876,2]
[319492589,1710800084193,-1706.82,0.00032876,2]
[319492590,1710800084202,-1706.82,0.00032876,2]
[319492591,1710800084211,-1706.82,0.00032876,2]
[319492592,1710800084221,-1706.82,0.00032876,2]
[319492593,1710800084230,-1706.82,0.00032876,2]
[319492594,1710800084240,-1706.82,0.00032876,2]
[319492595,1710800084249,-1706.82,0.00032876,2]
[319492596,1710800084258,-1706.82,0.00032876,2]
[319492597,1710800084267,-1706.82,0.00032876,2]
[319492598,1710800084276,-1706.82,0.00032876,2]
[319492599,1710800084286,-1706.82,0.00032876,2]
[319492600,1710800084296,-1706.82,0.00032876,2]
[319492601,1710800084305,-1706.82,0.00032876,2]
[319492602,1710800084314,-1706.82,0.00032876,2]
[319492603,1710800084463,-1706.82,0.00032876,2]
[319492604,1710800084473,-1706.82,0.00032876,2]
[319492605,1710800084482,-1706.82,0.00032876,2]
[319492606,1710800084492,-1706.82,0.00032876,2]
[319492607,1710800084502,-1706.82,0.00032876,2]
[319492608,1710800084511,-1706.82,0.00032876,2]
[319492609,1710800084521,-1706.82,0.00032876,2]
[319492610,1710800084531,-1706.82,0.00032876,2]
[319492611,1710800084540,-1706.82,0.00032876,2]
[319492612,1710800084551,-1706.88687419,0.00032876,2]
[319492613,1710800084560,-319.71,0.00032877,2]
[319492614,1710800084569,-37446.85,0.00032877,2]
[319492615,1710800084578,-55798.51,0.00032877,2]
[319492616,1710800084588,-1250.13,0.00032877,10]
[319492617,1710800084598,-520.37128493,0.00032877,7]
[319492618,1710800084608,-150.0,0.00032877,30]
[319492619,1710800084619,-150.0,0.00032877,30]
[319492620,1710800084629,-150.0,0.00032877,30]
[319492621,1710800084638,-150.0,0.00032877,30]
[319492622,1710800084647,-150.0,0.00032877,30]
[319492623,1710800084657,-150.0,0.00032877,30]
[319492624,1710800084667,-150.0,0.00032877,30]
[319492625,1710800084676,-150.0,0.00032877,30]
[319492626,1710800084686,-150.0,0.00032877,30]
[319492627,1710800084695,-150.0,0.00032877,30]
[319492628,1710800084704,-150.0,0.00032877,30]
[319492629,1710800084713,-150.0,0.00032877,30]
[319492630,1710800084722,-150.0,0.00032877,30]
[319492631,1710800084731,-150.0,0.00032877,30]
[319492632,1710800084740,-150.0,0.00032877,30]
[319492633,1710800084749,-150.0,0.00032877,30]
[319492634,1710800084758,-150.0,0.00032877,30]
[319492635,1710800084767,-150.0,0.00032877,30]
[319492636,1710800084775,-150.0,0.00032877,30]
[319492637,1710800084785,-150.0,0.00032877,30]
[319492638,1710800084794,-196.78441449,0.00032877,30]
[319492639,1710800084803,-150.0,0.00032877,30]
[319492640,1710800084812,-150.0,0.00032877,30]
[319492641,1710800084822,-150.0,0.00032877,30]
[319492642,1710800084831,-150.0,0.00032877,30]
[319492643,1710800084840,-150.95,0.00032877,2]
[319492644,1710800084849,-150.0,0.00032877,2]
[319492645,1710800084858,-155.0,0.00032878,2]
[319492646,1710800084868,-5000.0,0.0003288,21]
[319492647,1710800084878,-150.0,0.00032889,7]
[319492648,1710800084887,-151.52985993,0.00032899,2]
[319492649,1710800084896,-1281.70639757,0.000329,120]
[319492650,1710800084906,-10698.12201337,0.000329,30]
[319492651,1710800084915,-385021.29624104,0.000329,5]
[319492652,1710800084925,-150.136983,0.000329,3]
[319492653,1710800084934,-3341.97952861,0.000329,2]
[319492654,1710800084943,-1805.75938735,0.000329,2]
[319492655,1710800084953,-150.0,0.00032903,7]
[319492656,1710800084962,-451.48190499,0.00032959,30]
[319492657,1710800084972,-5829.76,0.00032968,30]
[319492658,1710800084981,-5829.76,0.00032968,30]
[319492659,1710800084990,-5000.0,0.00032981,2]
[319492660,1710800085000,-5000.0,0.00032981,2]
[319492661,1710800085009,-5000.0,0.00032981,2]
[319492662,1710800085018,-5000.0,0.00032981,2]
[319492663,1710800085027,-200000.0,0.00033,33]
[319492664,1710800085037,-200000.0,0.00033,23]
[319492665,1710800085047,-300.0,0.00033,33]
[319492666,1710800085056,-24213.43312701,0.00033,2]
[319492667,1710800085065,-968.55962204,0.00033,2]
[319492668,1710800085075,-501.76175361,0.00033,7]
[319492669,1710800085084,-3000.0,0.00033,7]
[319492670,1710800085093,-273.20787823,0.00033,10]
[319492671,1710800085102,-118171.57381443,0.00033,30]
[319492672,1710800085111,-14969.40512943,0.00033,2]
[319492673,1710800085121,-70385.50178251,0.00033,30]
[319492674,1710800085130,-1000.0,0.00033,15]
[319492675,1710800085139,-1001.8,0.00033,15]
[319492676,1710800085149,-2084.0,0.00033,30]
[319492677,1710800085158,-2100.0,0.00033,2]
[319492678,1710800085167,-600.0,0.00033,34]
[319492679,1710800085177,-500.0,0.00033,5]
[319492680,1710800085186,-59993.46686775,0.00033,30]
[319492681,1710800085195,-412787.06299774,0.00033,30]
[319492682,1710800085206,-22985.55839863,0.00033,30]
[319492683,1710800085215,-55000.0,0.00033,10]
[319492684,1710800085224,-6283.95943238,0.00033,120]
[319492685,1710800085234,-1000.0,0.00033,120]
[319492686,1710800085243,-80386.68312201,0.00033,14]
[319492687,1710800085252,-1468.927821,0.00033,22]
[319492688,1710800085261,-15210.09,0.00033,2]
[319492689,1710800085270,-15210.09,0.00033,2]
[319492690,1710800085280,-15210.09,0.00033,2]
[319492691,1710800085289,-15210.09,0.00033,2]
[319492692,1710800085299,-15210.09,0.00033,2]
[319492693,1710800085308,-15210.09,0.00033,2]
[319492694,1710800085318,-15210.09,0.00033,2]
[319492695,1710800085327,-15210.09,0.00033,2]
[319492696,1710800085336,-15210.09,0.00033,2]
[319492697,1710800085345,-15210.09,0.00033,2]
[319492698,1710800085354,-15210.09,0.00033,2]
[319492699,1710800085364,-15210.09,0.00033,2]
[319492700,1710800085373,-15210.09,0.00033,2]
[319492701,1710800085382,-15210.09,0.00033,2]
[319492702,1710800085392,-15210.09,0.00033,2]
[319492703,1710800085403,-15210.09,0.00033,2]
[319492704,1710800085413,-15210.09,0.00033,2]
[319492705,1710800085422,-15210.09,0.00033,2]
[319492706,1710800085433,-15210.09,0.00033,2]
[319492707,1710800085444,-15210.09,0.00033,2]
[319492708,1710800085454,-205.0,0.00033,2]
[319492709,1710800085464,-150.0,0.00033026,7]
[319492710,1710800085473,-151.05666748,0.00033066,2]
[319492711,1710800085483,-150.0,0.000331,7]
[319492712,1710800085493,-150.0,0.00033149,7]
[319492713,1710800085503,-500.0,0.0003315,4]
[319492714,1710800085512,-2171.7,0.0003315,4]
[319492715,1710800085522,-150.0,0.00033161,7]
[319492716,1710800085532,-1010.44,0.0003318,2]
[319492717,1710800085541,-622369.49473827,0.000332,3]
[319492718,1710800085550,-15210.09,0.000332,2]
[319492719,1710800085560,-15210.09,0.000332,2]
[319492720,1710800085570,-15210.09,0.000332,2]
[319492721,1710800085580,-15210.09,0.000332,2]
[319492722,1710800085590,-15210.09,0.000332,2]
[319492723,1710800085599,-15210.09,0.000332,2]
[319492724,1710800085609,-15210.09,0.000332,2]
[319492725,1710800085620,-15210.09,0.000332,2]
[319492726,1710800085634,-15210.09,0.000332,2]
[319492727,1710800085644,-15210.09,0.000332,2]
[319492728,1710800085653,-15210.09,0.000332,2]
[319492729,1710800085663,-15210.09,0.000332,2]
[319492730,1710800085672,-15210.09,0.000332,2]
[319492731,1710800085682,-15210.09,0.000332,2]
[319492732,1710800085692,-15210.09,0.000332,2]
[319492733,1710800085701,-15210.09,0.000332,2]
[319492734,1710800085712,-15210.09,0.000332,2]
[319492735,1710800085722,-15210.09,0.000332,2]
[319492736,1710800085732,-15210.09,0.000332,2]
[319492737,1710800085743,-15210.09,0.000332,2]
[319492738,1710800085752,-5829.76,0.00033241,30]
[319492739,1710800085762,-5829.76,0.00033241,30]
[319492740,1710800085771,-150.0,0.00033273,7]
[319492741,1710800085781,-49482.92007598,0.00033297,7]
[319492742,1710800085790,-1083.18,0.000333,9]
[319492743,1710800085801,-1010.44,0.0003338,2]
[319492744,1710800085810,-150.0,0.00033396,7]
[319492745,1710800085820,-500.0,0.00033424,4]
[319492746,1710800085830,-2171.7,0.00033424,4]
[319492747,1710800085839,-150.0,0.00033425,2]
[319492748,1710800085849,-150.0,0.00033468,7]
[319492749,1710800085859,-150.0,0.0003348,7]
[319492750,1710800085868,-152.0,0.00033496,10]
[319492751,1710800085878,-2608.38957068,0.00033497,33]
[319492752,1710800085887,-1131.55173447,0.000335,2]
[319492753,1710800085897,-94022.11468703,0.000335,30]
[319492754,1710800085907,-15210.09,0.000335,2]
[319492755,1710800085917,-15210.09,0.000335,2]
[319492756,1710800085927,-15210.09,0.000335,2]
[319492757,1710800085936,-15210.09,0.000335,2]
[319492758,1710800085947,-15210.09,0.000335,2]
[319492759,1710800085957,-15210.09,0.000335,2]
[319492760,1710800085968,-15210.09,0.000335,2]
[319492761,1710800085977,-15210.09,0.000335,2]
[319492762,1710800085987,-15210.09,0.000335,2]
[319492763,1710800085997,-15210.09,0.000335,2]
[319492764,1710800086007,-15210.09,0.000335,2]
[319492765,1710800086016,-15210.09,0.000335,2]
[319492766,1710800086026,-15210.09,0.000335,2]
[319492767,1710800086035,-15210.09,0.000335,2]
[319492768,1710800086046,-15210.09,0.000335,2]
[319492769,1710800086056,-15210.09,0.000335,2]
[319492770,1710800086065,-15210.09,0.000335,2]
[319492771,1710800086073,-15210.09,0.000335,2]
[319492772,1710800086082,-7030.55883472,0.000335,2]
[319492773,1710800087890,-500.0,0.00021917,2]
[319492774,1710800087899,-326.2625,0.00022191,2]
[319492803,1710800288594,308.5777198,0.00023223,100]
[319492804,1710800381597,3712.89,0.00022,30]
[319492815,1710800879287,1566.791,0.00022,30]
[319492816,1710800947089,-235.98479686,0.00013692,2]
[319492817,1710800947108,-155.0,0.00013693,2]
[319492818,1710800947127,-235.98479686,0.00013694,2]
[319492819,1710800947146,-235.98479686,0.00013694,2]
[319492820,1710800947165,-233.42809909,0.0001372,2]
[319492821,1710800947183,-150.0,0.0001472,2]
[319492822,1710800947205,-435.64,0.00015376,2]
[319492823,1710800947224,-150.0,0.0001572,2]
[319492824,1710800947243,-351.68569352,0.00016551,2]
[319492825,1710800947263,-356.48,0.00016651,2]
[319492826,1710800947281,-150.0,0.0001672,2]
[319492827,1710800947535,-2091.45,0.0001672,2]
[319492828,1710800947555,-499.99,0.0001672,2]
[319492829,1710800947575,-351.6856935,0.00016843,2]
[319492830,1710800947595,-351.6856935,0.00017134,2]
[319492831,1710800947615,-250.0,0.00017254,2]
[319492832,1710800947634,-150.0,0.00017254,2]
[319492833,1710800947653,-10000.0,0.00017308,2]
[319492834,1710800947673,-363.41,0.00017324,2]
[319492835,1710800947695,-351.6856935,0.00017426,2]
[319492836,1710800947714,-232.87,0.0001744,2]
[319492837,1710800947734,-746.82,0.00017468,2]
[319492838,1710800947753,-150.99,0.00017468,2]
[319492839,1710800947773,-159.77,0.000175,2]
[319492840,1710800947793,-1857.56959225,0.00017525,2]
[319492841,1710800962103,-893.43040775,0.00017525,2]
[319492842,1710800962124,-155.0,0.00017615,2]
[319492843,1710800962146,-235.98479686,0.00017615,2]